Cogmind - Beta 15 @@@ ROGUE MODE // 2025.10.17 @ 00:28:17 Player: SunnyVampire Result: Destroyed by D-53 Grenadier with Mini Grenade Launcher Performance ------------- Evolutions (0) 0 Regions Visited (2) 400 Robots Destroyed (19) 95 Value Destroyed (394) 394 Prototype IDs (2) 40 Alien Tech Used (0) 0 Bonus (0) 0 TOTAL SCORE: 929 Bonus ------- None Cogmind --------- Core Integrity 0/250 Matter 272/300 Energy 250/250 System Corruption 0% Temperature Cool (0) Movement Walking (120) Location -10/Mines Parts ------- > --- POWER (1) -------- Ion Engine > --- PROPULSION (2) --- Aluminum Leg Aluminum Leg > --- UTILITY (2) ------ Small Storage Unit Weapon Shielding > --- WEAPON (2) ------- Light Cannon Grenade Launcher > --- INVENTORY (8) ---- Ion Engine Aluminum Leg Aluminum Leg Heat Sink Targeting Computer Medium Laser Light Assault Rifle Blade Trap Peak State ------------ > --- POWER ------------ Ion Engine > --- PROPULSION ------- Aluminum Leg Aluminum Leg > --- UTILITY ---------- Small Storage Unit Hacking Suite > --- WEAPON ----------- Medium Laser Grenade Launcher > --- INVENTORY -------- Light Ion Engine Aluminum Leg Aluminum Leg Heat Sink Medium Laser Small Laser Small Laser [Rating: 9] Favorites ----------- Power Ion Engine Engine Ion Engine Power Core Light Nuclear Core Propulsion Aluminum Leg Treads Light Treads Leg Aluminum Leg Utility Small Storage Unit Device Heat Sink Storage Small Storage Unit Hackware Hacking Suite Protection Weapon Shielding Weapon Medium Laser Energy Gun Medium Laser Ballistic Cannon Light Cannon Launcher Grenade Launcher Build | -11 -10 -10 ------- Run | Yrd Mat Min Slots Evolved . | . . . Power . | . . . Propulsion . | . . . Utility . | . . . Weapon . | . . . Parts Attached 17 | 7 10 . Power 3 | 1 2 . Engine 2 | 1 1 . Core 1 | . 1 . Reactor . | . . . Propulsion 4 | 3 1 . Treads 2 | 2 . . Leg 2 | 1 1 . Wheel . | . . . Hover . | . . . Flight . | . . . Utility 5 | 1 4 . Device 2 | . 2 . Storage 1 | 1 . . Processor . | . . . Hackware 1 | . 1 . Protection 1 | . 1 . Artifact . | . . . Weapon 5 | 2 3 . Energy Gun 3 | 2 1 . Energy Cannon . | . . . Ballistic Gun . | . . . Ballistic Cannon 1 | . 1 . Launcher 1 | . 1 . Special Weapon . | . . . Impact Weapon . | . . . Slashing Weapon . | . . . Piercing Weapon . | . . . Special Melee Weapon . | . . . Unidentified Prototypes . | . . . Parts Lost 7 | . 7 . Power 2 | . 2 . Propulsion 2 | . 2 . Utility 2 | . 2 . Weapon 1 | . 1 . Highest Loss Streak 2 | . 2 . To Critical Strikes . | . . . Average Backups 6 | 1 6 7 Power . | . 1 1 Propulsion 2 | . 2 2 Utility . | . . 1 Weapon 1 | . 1 2 Tool/Special . | . . . Unused Backups 9 | . 1 8 Power 2 | . 1 1 Propulsion 3 | . . 3 Utility 1 | . . 1 Weapon 3 | . . 3 Tool/Special . | . . . Average Slot Usage (%) 87 | . 83 100 Engine 10 | . 9 14 Treads 7 | . 9 . Leg 17 | . 14 28 Device 3 | . 4 . Storage 14 | . 14 14 Hackware 3 | . 4 . Protection 3 | . . 14 Energy Gun 12 | . 15 . Ballistic Cannon 4 | . 2 14 Launcher 7 | . 6 14 Peak Build Rating 9 | 6 9 7 Average Rating 6 | 4 6 7 On Entrance 4 | . 6 7 Naked Turns . | . . . Heaviest Build 17 | 14 17 17 Greatest Support 40 | 40 40 20 Greatest Overweight (x) 1 | 1 . . Average Overweight (x) . | . . . Largest Inventory Capacity 8 | 8 8 8 Average Capacity 7 | 7 8 8 Most Carried 8 | 4 8 8 Average Carried 6 | 1 6 7 Final Capacity 8 | 8 8 8 Final Carried 8 | 4 8 8 Class Distribution -------------------- 100% | Mutant Dominant Class ---------------- Mutant | -10/Materials Mutant | -10/Mines Resources | -11 -10 -10 ----------- Run | Yrd Mat Min Matter Collected 410 | 204 137 69 Remotely . | . . . Salvage Created 393 | . 377 16 Parts 31 | . 21 10 Haulers Intercepted . | . . . Recyclers Shooed 1 | . 1 . Parts Field Recycled . | . . . Retrieved Matter . | . . . Parts Self-Destructed . | . . . Prevented . | . . . Kills | -11 -10 -10 ------- Run | Yrd Mat Min Combat Hostiles Destroyed 15 | . 9 6 Guns 6 | . 6 . Cannons 1 | . . 1 AOE 8 | . 3 5 Classes Destroyed 5 | . 5 . Recycler 1 | . 1 . Operator 2 | . 2 . Watcher 1 | . 1 . Swarmer 9 | . 3 6 Grunt 6 | . 6 . Best Kill Streak 4 | . 4 3 Combat Bots Only 3 | . 3 3 Max Kills in Single Turn 3 | . 3 3 Gunslinging . | . . . Exploded 3 | . 2 3 Melee . | . . . Uniques/NPCs Destroyed . | . . . Combat | -11 -10 -10 -------- Run | Yrd Mat Min Hostile Shots Fired 79 | . 69 10 Missed 14 | . 12 2 Hits 65 | . 57 8 Projectile 65 | . 57 8 AOE 7 | . . 7 Critical Strikes 1 | . 1 . Damage Taken 1110 | . 788 322 Core 263 | . 165 98 Absorbed by Shields . | . . . Redirected to Shielding 42 | . . 42 Core Remaining (%) 100 | 100 . . Volleys Fired 63 | . 59 4 Largest 2 | . 2 2 Hottest 100 | . 100 60 Shots Fired 96 | . 88 8 Gun 81 | . 81 . Cannon 6 | . 2 4 Launcher 9 | . 5 4 Special . | . . . Kinetic 6 | . 2 4 Thermal 81 | . 81 . Explosive 9 | . 5 4 Electromagnetic . | . . . Robot Hit Streak 8 | . 8 1 Robot Miss Streak 4 | . 4 2 Penetration Max . | . . . Secondary Targets . | . . . Shots Hit Robots 52 | . 49 3 Core Hits 36 | . 28 8 Critical Kills . | . . . Critical Parts Destroyed . | . . . Critical Strikes 7 | . 7 . Burn 7 | . 7 . Melee Attacks . | . . . Impact . | . . . Slashing . | . . . Piercing . | . . . Sneak Attacks . | . . . Combat Hostiles . | . . . Follow-up Attacks . | . . . Damage Inflicted 1188 | . 916 272 Guns 597 | . 597 . Cannons 16 | . . 16 Explosions 560 | . 304 256 Melee . | . . . Ramming 15 | . 15 . Kinetic 16 | . . 16 Thermal 597 | . 597 . Explosive 560 | . 304 256 Electromagnetic . | . . . Impact . | . . . Slashing . | . . . Piercing . | . . . Highest Corruption . | . . . Average Corruption . | . . . Corruption Purged . | . . . Corruption Blocked . | . . . Overload Shots . | . . . Overflow Damage 30 | . . 30 Projectiles . | . . . Explosions 30 | . . 30 Melee . | . . . Knockbacks . | . . . Impact . | . . . Kinetic . | . . . Secondary . | . . . Self-Inflicted Damage 12 | . . 12 Shots 1 | . . 1 Rammed 6 | . 6 . Targets Rammed 10 | . 10 . Kicked 4 | . 4 . Crushed . | . . . Highest Temperature 488 | . 488 . Average Temperature 213 | . 213 . Received Heat Transfer 435 | . 435 . Effects 7 | . 7 . Shutdowns 3 | . 3 . Energy Bleed 1 | . 1 . Interference 2 | . 2 . Damage (minor) 1 | . 1 . Siege Activations . | . . . Martial Activations . | . . . Shielding Activations . | . . . Robots Disrupted . | . . . Combat Hostiles . | . . . Robots Corrupted . | . . . Combat Hostiles . | . . . Parts Fried . | . . . Impact Corruptions . | . . . Robots Melted . | . . . Combat Hostiles . | . . . Parts Melted 1 | . 1 . Heat Transferred 2282 | . 2282 . Parts Sabotaged . | . . . Parts Stolen . | . . . Parts Stripped . | . . . Power Chain Reactions . | . . . Alert | -11 -10 -10 ------- Run | Yrd Mat Min Maximum Alert Level . | . . . Low Security (%) 100 | 100 100 100 Level 1 . | . . . Level 2 . | . . . Level 3 . | . . . Level 4 . | . . . Level 5 . | . . . High Security . | . . . Max Security . | . . . Peak Influence 110 | . 99 110 Initial 31 | . . 31 Average 26 | . 18 70 Influence Increases 481 | . 322 159 Destroy 0b10 Robot/C 300 | . 180 120 Destroy 0b10 Robot/NC 20 | . 20 . Destroy Leader 62 | . 42 20 Successful Hack 8 | . 8 . Disable Machine 30 | . 30 . Destroy Structure 46 | . 27 19 Lose Combat Pursuer 15 | . 15 . Influence Decreases 381 | . 239 142 Entered New Map 52 | . . 52 Time Decay 300 | . 210 90 Lost Part 29 | . 29 . Squads Dispatched 1 | . 1 . Investigation . | . . . Extermination . | . . . Reinforcement 1 | . 1 . Assault . | . . . Garrison . | . . . Intercept . | . . . Searches Triggered . | . . . Construction Impeded . | . . . Haulers Reinforced . | . . . Active Scanning Responses . | . . . Cargo Convoy Interrupts . | . . . Stealth | -11 -10 -10 --------- Run | Yrd Mat Min Distress Signals 6 | . 6 . Communications Jammed . | . . . Distress Signals . | . . . Times Spotted 22 | . 16 6 Peak Tracking Total 6 | . 6 5 Tactical Retreats 1 | . 1 . Traps | -11 -10 -10 ------- Run | Yrd Mat Min Traps Triggered 1 | . 1 . Indirectly . | . . . Trap Hack Attempts . | . . . Triggered . | . . . Disarmed 6 | . 6 . Reprogrammed . | . . . Reused . | . . . Traps Extracted . | . . . Installed . | . . . Triggered . | . . . Most Traps Carried 1 | . . 1 Machines | -11 -10 -10 ---------- Run | Yrd Mat Min Machines Disabled 2 | . 2 . Max in Single Turn 1 | . 1 . Machines Repaired . | . . . Machines Dismantled . | . . . Machines Sabotaged . | . . . Overloaded Fab Kills . | . . . Hacking | -11 -10 -10 --------- Run | Yrd Mat Min Machines Accessed 3 | . 3 . Terminals 3 | . 3 . Fabricators . | . . . Repair Stations . | . . . Recycling Units . | . . . Scanalyzers . | . . . Garrison Access . | . . . Total Hacks 11 | . 11 . Successful 4 | . 4 . Failed 7 | . 7 . Catastrophic 3 | . 3 . Database Lockouts . | . . . Manual 10 | . 10 . Terminals 11 | . 11 . Fabricators . | . . . Repair Stations . | . . . Recycling Units . | . . . Scanalyzers . | . . . Garrison Access . | . . . Terminal Hacks 4 | . 4 . Prototype ID Bank 1 | . 1 . Branch Access Points 1 | . 1 . Alert Level 1 | . 1 . Disarm Traps 1 | . 1 . Fabricator Hacks . | . . . Repair Station Hacks . | . . . Recycling Unit Hacks . | . . . Scanalyzer . | . . . Garrison Access Hacks . | . . . Unauthorized Hacks . | . . . Terminals . | . . . Fabricators . | . . . Repair Stations . | . . . Recycling Units . | . . . Scanalyzers . | . . . Garrison Access . | . . . Data Cores Recovered . | . . . Used . | . . . Hacking Detections 3 | . 3 . Full Trace Events . | . . . Feedback Events . | . . . Feedback Blocked . | . . . Robot Schematics Acquired . | . . . Robots Built . | . . . Authchips . | . . . Time . | . . . Total Robot Build Rating . | . . . Part Schematics Acquired . | . . . Parts Built . | . . . Authchips . | . . . Time . | . . . Total Part Build Rating . | . . . Parts Repaired . | . . . Time . | . . . Parts Recycled . | . . . Recycled Matter . | . . . Retrieved Matter . | . . . Retrieved Components . | . . . Parts Scanalyzed . | . . . Part Schematics Acquired . | . . . Parts Damaged . | . . . Bothacking | -11 -10 -10 ------------ Run | Yrd Mat Min Used RIF Installer . | . . . Robots Hacked . | . . . Non-combat . | . . . Combat . | . . . Robot Hacks Applied . | . . . Relay Couplers Released . | . . . Fabnet Peak Effective % . | . . . Robots Rewired . | . . . Allies Hacked . | . . . Hacks Repelled . | . . . Allies | -11 -10 -10 -------- Run | Yrd Mat Min Total Allies . | . . . Largest Group . | . . . Highest-Rated Group . | . . . Highest-Rated Ally . | . . . Total Orders . | . . . Ally Attacks . | . . . Total Damage . | . . . Kills . | . . . Allies Corrupted . | . . . Allies Melted . | . . . Intel | -11 -10 -10 ------- Run | Yrd Mat Min Active Infowar (turns) 51 | . 51 . Seismic 51 | . 51 . Robot Analysis Total . | . . . Derelict Logs Recovered . | . . . Drone Launches . | . . . Drone Recoveries . | . . . Exploration | -11 -10 -10 ------------- Run | Yrd Mat Min Turns Passed 976 | 88 707 181 Spaces Moved 578 | 52 387 139 Core 9 | 9 . . Treads 170 | 36 134 . Legs 399 | 7 253 139 Wheels . | . . . Hover . | . . . Flight . | . . . Fastest Speed 50 | 50 120 120 Average Speed 131 | 145 133 120 Slowest Speed 190 | 190 160 120 Overloaded Moves . | . . . Propulsion Burnouts . | . . . Robots Hopped . | . . . Potential Cave-ins . | . . . Cave-ins Triggered . | . . . Exploration Rate (%) 35 | 6 63 38 Regions Visited 2 Branch Regions 1 Pre-discovered Areas . | . . . Known Exits Taken 1 | . 1 . Unknown Exits Taken 1 | 1 . . Scrap Searched 1 | . . 1 Spaces Dug . | . . . Terrain Destroyed 43 | . 23 20 Melee . | . . . Projectile . | . . . AOE 43 | . 23 20 Terrain Rammed . | . . . Walls Destroyed . | . . . Machines Disabled . | . . . Actions | -11 -10 -10 --------- Run | Yrd Mat Min Total 693 | 62 483 148 Wait 4 | . 3 1 Move 576 | 51 386 139 Hop . | . . . Pick Up 14 | 3 9 2 Fast Attach 13 | 7 6 . Attach 5 | . 5 . Detach 3 | 1 2 . Swap . | . . . Drop 5 | . 3 2 Fire 63 | . 59 4 Melee . | . . . Ram . | . . . Kick 4 | . 4 . Crush 6 | . 6 . Escape Stasis . | . . . Rewire . | . . . Trap . | . . . Miscellaneous . | . . . Route ------- -11/Scrapyard -10/Materials (discovered 2 exits: [*Mat] / *Min) -10/Mines (discovered 1 exit: [*Mat]) History --------- Turn | Location | Event 31 | -11/Scrapyard | Discovered new exit (range 16) 89 | -11/Scrapyard | Entered Materials 280 | -10/Materials | Core integrity fell below 50% 319 | -10/Materials | Build established: Mutant 545 | -10/Materials | Discovered new exit (range 8) 777 | -10/Materials | Identified exit to Mines 796 | -10/Materials | Entered Mines 852 | -10/Mines | Found a hidden stash of uninstalled traps 968 | -10/Mines | Assembled infested the area 972 | -10/Mines | Core integrity fell below 20% 973 | -10/Mines | Assisted by a Guerilla fighting off Assembled 973 | -10/Mines | Discovered new exit (range 8) 977 | -10/Mines | Destroyed by D-53 Grenadier with Mini Grenade Launcher Last Messages --------------- 00852_ A stash of uninstalled traps is collected here! 00854_ Dropped Aluminum Leg. 00855_ Acquired Blade Trap. 00913_ K-01 Serf collects debris. 00968_ ALERT: Infestation in the mines, dispatching Demolisher response squad. 00972_ 1M-TU2(h): "I'll hold them off! Go on ahead or try to find another way!" 00973_ A derelict emerges from the shadows: "You need to get out of here! I've been tracking a group of Assembled to figure out where they're coming from, and they're closing on this area, come on!" 00973_ 1M-TU2(h) destroyed. 00973_ EXIT=FOUND 00973_ S-10 Pest destroyed. 00973_ Destroyed Flight Unit. 00973_ S-10 Pest destroyed. 00977_ The unstable cave ceiling collapses. Map ----- +----------------------------------------------------+ | ??????????????????????# ##?? | | ??????????????????????# ##? | | ??????????????????????## #? | | ???????????????????????## #? | | ????????????????????????#### ##? | | ???????????????????????????### !#?? | | ?????????????????????##?????## #?? | | ????????????????###### ##?## = ### | | ????????????????? ## [ | | ?????????????????? """ ## | | ????????????????????# """ ## | | ????????????????????# """ ## | | ???????????????????# ## | | ???????????????????# ### | | ???????????????????# ########?# | | ?????##????????????## #?????????# | | ?????# ??????????#??###??????????# | | ?????# ???????? ##??????????????# | | ??#??# ???##?? ##???????????### | | ??# ## ### ### ##?????????## | | ??# # #?????##### | | ??## #?????# | | ?## #??????# ### &&= | | ?# d%*d[ ] #???????# #?# & | | ??# * #?????????# #?## & | | ??# @ #????????????# #??## # | | ?# = #########?## ###?### | | ?# < # r ### ##??? | | ?# # #### #??? | | ?# """ ## # ## ##?## #??? | | ?# """ ?##?#### ##?### ##??? | | ???"""???????# #???## #???? | | ??? ???????## #????# #???? | | ???#???????## ##????# ##???? | | ??????????## ##?????## ##????? | | ??????????# ##??####?#####?????? | | ?????????## ##?## ##??????????? | | ??????#### ### #??????????? | | ?????## ##?????????? | | ?????# #?????????? | | ?????# ## ##????????? | | ????## ########## ###??????? | | ??### ##????????## ##?????? | | ?## ##??????????# #?????? | | ?# ##???????????## #?????? | | ?# #?????????????# #?????? | | ?# ##????????????## ##?????? | | ?# #?????????????## ##??????? | | ?# #??????????????####???????? | | ?# ##?????????????????????????? | +----------------------------------------------------+ Best States ------------- Heat Dissipation 35 Energy Generation 14 Energy Capacity 250 Matter Stores 300 Matter Capacity 300 Sight Range 16 Terrain Scan Density 10 Weapon Shielding 33 Evasion (%) 55 Recoil Reduction 2 Offensive Hacking 10 Item Schematics ----------------- None Robot Schematics ------------------ None Fabricated ------------ Nothing Repaired ---------- Nothing Alien Tech Used ----------------- None Achievements -------------- None Challenges ------------ None Game ------ Seed ConstructBlanketParser Manual? 0 Play Time 00:14:51 Cumulative 13.7 hours Start 2025.10.17 @ 00:14:04 End 2025.10.17 @ 00:28:17 Sessions 1 Manual Loads 0 Difficulty Rogue Special Mode None Game No. 21 Rogue 21 Adventurer 0 Explorer 0 Win Type - Total 0 Types 0/0/0/0/0/0/0/0/0/0 Lore% 11 Gallery% 10 Achievement% 18 Wizard Run 0 Options --------- Layout 1 ASCII 0 Keyboard 1 Movement Numpad Keybinds 0 Fullscreen 1 Font 24/Smallcaps Map View 50x35 Zoom Use 0% Tactical HUD 1 Map Filters NONE Filters NONE Steam 1 RUN: 1dbea610-60cb-40fd-80fc-21d684c80a32